bitfinex-derivatives/quotes_BNBF0:USTF0_20251027
["timestamp","ask_amount","ask_price","bid_price","bid_amount"]
[1761565458719,2.1456881,1170.3,1167.2,1.274]
[1761565459422,3.0039634,1170.9,1167.2,1.274]
[1761565459823,0.14886268,1171.1,1167.2,1.274]
[1761565460921,2.1456881,1171.0,1167.2,1.274]
[1761565461120,0.14886268,1171.1,1167.2,1.274]
[1761565461121,2.1456881,1170.9,1167.2,1.274]
[1761565462827,2.1456881,1169.9,1167.2,1.274]
[1761565464127,2.1456881,1170.0,1167.2,1.274]
[1761565466925,2.1456881,1170.3,1167.2,1.274]
[1761565468325,2.1456881,1170.2,1167.2,1.274]
[1761565468831,2.1456881,1170.4,1167.2,1.274]
[1761565469429,2.1456881,1170.7,1167.2,1.274]
[1761565469824,2.1456881,1170.8,1167.2,1.274]
[1761565472027,2.1456881,1169.9,1167.2,1.274]
[1761565472526,2.1456881,1169.8,1167.2,1.274]
[1761565473030,2.1456881,1170.1,1167.2,1.274]
[1761565473427,2.1456881,1170.2,1167.2,1.274]
[1761565473828,2.1456881,1170.2,1167.3,0.53828737]
[1761565474025,3.0039634,1170.6,1167.2,1.274]
[1761565474225,3.0039634,1170.6,1167.3,0.53828661]
[1761565474426,2.29455078,1171.1,1166.7,0.62025004]
[1761565474728,2.29455078,1171.1,1166.8,0.53828838]
[1761565474927,2.29455078,1171.1,1166.9,0.53828838]
[1761565475130,2.29455078,1171.1,1167.0,0.53828838]
[1761565475328,2.29455078,1171.1,1167.1,0.53828838]
[1761565475532,2.1456881,1170.9,1167.2,0.53828838]
[1761565475729,2.1456881,1170.9,1167.3,0.53828838]
[1761565475930,2.1456881,1170.9,1166.7,0.62025004]
[1761565476132,2.1456881,1170.9,1166.8,0.53830948]
[1761565476332,2.1456881,1170.9,1166.9,0.53830948]
[1761565476529,0.14886268,1171.1,1167.0,0.53830948]
[1761565476729,0.14886268,1171.1,1167.1,0.53830948]
[1761565476932,0.14886268,1171.1,1167.2,2.02930948]
[1761565477232,0.14886268,1171.1,1167.2,1.491]
[1761565477734,2.1456881,1170.9,1167.2,1.491]
[1761565478131,2.1456881,1170.5,1167.2,1.491]
[1761565479035,2.1456881,1170.4,1167.2,1.491]
[1761565479636,2.1456881,1170.1,1167.2,1.491]
[1761565480136,2.1456881,1170.2,1167.2,1.491]
[1761565481941,2.1456881,1170.8,1167.3,0.53838369]
[1761565482140,2.1456881,1170.8,1167.2,1.491]
[1761565482440,2.1456881,1170.7,1167.3,0.53844849]
[1761565482639,2.1456881,1170.7,1167.2,1.491]
[1761565482836,2.1456881,1170.7,1167.3,0.53842579]
[1761565483035,2.1456881,1170.7,1167.2,1.491]
[1761565483237,2.1456881,1170.7,1167.3,0.53842579]
[1761565483438,2.1456881,1170.7,1167.2,1.491]
[1761565483638,2.1456881,1170.7,1167.3,0.53849091]
[1761565483839,0.14886268,1171.1,1167.2,1.491]
[1761565483840,2.1456881,1171.0,1167.2,1.491]
[1761565484036,2.1456881,1171.0,1167.3,0.53850631]
[1761565484237,2.1456881,1171.0,1167.2,1.491]
[1761565484438,2.1456881,1171.0,1167.3,0.53858079]
[1761565484641,2.1456881,1171.0,1167.2,1.491]
[1761565484843,2.1456881,1171.0,1167.3,0.53858079]
[1761565485040,2.1456881,1171.0,1167.2,1.491]
[1761565485242,2.1456881,1171.0,1167.3,0.53859877]
[1761565485442,2.1456881,1171.0,1167.2,1.491]
[1761565485443,0.14886268,1171.1,1167.2,1.491]
[1761565485741,0.14886268,1171.1,1167.3,0.5388412]
[1761565485942,0.14886268,1171.1,1167.2,1.491]
[1761565486246,0.14886268,1171.1,1167.3,0.5388412]
[1761565486441,0.14886268,1171.1,1167.2,1.491]
[1761565486647,0.14886268,1171.1,1167.3,0.53897403]
[1761565486943,0.14886268,1171.1,1167.2,1.491]
[1761565487246,0.14886268,1171.1,1167.3,0.53897403]
[1761565487447,0.14886268,1171.1,1167.2,1.491]
[1761565487647,0.14886268,1171.1,1167.3,0.5391093]
[1761565487842,0.14886268,1171.1,1167.2,1.491]
[1761565488047,0.14886268,1171.1,1167.3,0.5390806]
[1761565488247,0.14886268,1171.1,1167.4,0.5390806]
[1761565488447,0.14886268,1171.1,1167.5,0.5390806]
[1761565488448,2.1456881,1171.0,1167.5,0.5390806]
[1761565488648,2.1456881,1171.0,1167.6,0.5390806]
[1761565488845,2.1456881,1171.0,1167.7,0.5390806]
[1761565489048,0.14886268,1171.1,1167.2,1.491]
[1761565489248,0.14886268,1171.1,1167.3,0.53875603]
[1761565489548,0.14886268,1171.1,1167.4,0.53875603]
[1761565489744,0.14886268,1171.1,1167.5,0.53875603]
[1761565490048,0.14886268,1171.1,1167.6,0.53875603]
[1761565490249,0.14886268,1171.1,1167.7,0.53875603]
[1761565490445,0.14886268,1171.1,1167.2,1.491]
[1761565490750,0.14886268,1171.1,1167.3,0.53883001]
[1761565491047,2.1456881,1171.9,1167.6,0.62025004]
[1761565491348,2.1456881,1171.6,1167.9,0.62025004]
[1761565491548,2.29447504,1171.6,1168.0,0.53883001]
[1761565491746,0.14878694,1171.6,1168.1,0.53883001]
[1761565491948,0.14878694,1171.6,1168.2,0.53883001]
[1761565492149,3.0039634,1172.1,1167.2,1.491]
[1761565492150,2.1456881,1171.7,1168.3,0.53883001]
[1761565492353,0.14873098,1171.9,1168.4,0.53883001]
[1761565492545,0.14873098,1171.9,1168.5,0.53883001]
[1761565492749,0.14873098,1171.9,1168.6,0.53883001]
[1761565493044,2.1456881,1172.7,1168.2,0.62025004]
[1761565493045,2.1456881,1172.7,1168.7,0.53883001]
[1761565493248,0.14868586,1172.0,1168.8,0.53883001]
[1761565493448,0.14868586,1172.0,1168.9,0.53883001]
[1761565493646,0.14868586,1172.0,1169.0,0.53883001]
[1761565493850,0.14868586,1172.0,1168.1,0.62025004]
[1761565494045,2.1456881,1172.9,1168.5,0.62025004]
[1761565494250,0.14861443,1172.8,1168.8,0.62025004]
[1761565494450,0.14861443,1172.8,1169.0,0.62025004]
[1761565494646,0.14861443,1172.8,1169.1,0.5356953]
[1761565494850,0.14861443,1172.8,1169.2,0.5356953]
[1761565495049,0.14861443,1172.8,1169.3,0.5356953]
[1761565495246,0.14861443,1172.8,1169.4,0.5356953]
[1761565495550,0.14861443,1172.8,1169.5,0.5356953]
[1761565495750,0.14861443,1172.8,1169.6,0.5356953]
[1761565495950,0.14861443,1172.8,1168.9,0.62025004]
[1761565496147,0.14861443,1172.8,1169.0,0.53283142]
[1761565496347,0.14861443,1172.8,1169.1,0.53283142]
[1761565496647,0.14861443,1172.8,1169.2,0.53283142]
[1761565496852,0.14861443,1172.8,1169.3,0.53283142]
[1761565497048,0.14861443,1172.8,1168.7,0.62025004]
[1761565497248,0.14861443,1172.8,1168.8,0.53237679]
[1761565497450,0.14861443,1172.8,1168.9,0.53237679]
[1761565497650,0.14861443,1172.8,1169.0,0.53237679]
[1761565497851,0.14861443,1172.8,1169.1,0.53237679]
[1761565498147,0.14861443,1172.8,1169.2,0.53237679]
[1761565498448,0.14861443,1172.8,1168.1,0.86592337]
[1761565498449,0.14861443,1172.8,1169.3,0.53237679]
[1761565498648,0.14861443,1172.8,1168.6,0.62025004]
[1761565498845,0.14861443,1172.8,1168.7,0.53106593]
[1761565499051,0.14861443,1172.8,1168.8,0.53106593]
[1761565499249,0.14861443,1172.8,1168.8,0.62025004]
[1761565499449,0.14861443,1172.8,1168.9,1.15131597]
[1761565499650,0.14861443,1172.8,1169.0,0.53106593]
[1761565499850,0.14861443,1172.8,1169.1,0.53106593]
[1761565500053,0.14861443,1172.8,1168.6,0.62025004]
[1761565500054,0.14861443,1172.8,1169.2,0.53106593]
[1761565500254,0.14861443,1172.8,1169.3,0.53106593]
[1761565500451,0.14861443,1172.8,1169.4,0.53106593]
[1761565500651,0.14861443,1172.8,1169.0,0.62025004]
[1761565500954,0.14861443,1172.8,1169.1,0.53016788]
[1761565501154,0.14861443,1172.8,1168.6,1.298885]
[1761565501155,2.1456881,1173.6,1169.2,0.53016788]
[1761565501351,2.1456881,1174.6,1169.3,0.53016788]
[1761565501651,0.14856145,1173.3,1169.3,0.62025004]
[1761565501950,0.14856145,1173.3,1169.4,0.53016788]
[1761565502150,0.14856145,1173.3,1169.5,0.53016788]
[1761565502452,0.14856145,1173.3,1169.6,0.52815439]
[1761565502657,0.14856145,1173.3,1169.0,0.62025004]
[1761565502858,0.14856145,1173.3,1169.1,0.52802335]
[1761565503054,0.14856145,1173.3,1169.1,1.14827339]
[1761565503354,0.14856145,1173.3,1169.2,0.52802335]
[1761565503552,0.14856145,1173.3,1169.3,0.52802335]
[1761565503756,0.14856145,1173.3,1169.4,0.52802335]
[1761565503951,0.14856145,1173.3,1169.1,0.62025004]
[1761565503952,0.14856145,1173.3,1169.5,0.52802335]
[1761565504154,0.14856145,1173.3,1169.6,0.52719752]
[1761565504456,0.14856145,1173.3,1168.9,0.62025004]
[1761565504653,0.14856145,1173.3,1169.0,0.52651885]
[1761565504852,0.14856145,1173.3,1169.1,0.52651885]
[1761565505057,0.14856145,1173.3,1169.2,0.52651885]
[1761565505357,0.14856145,1173.3,1166.6,2.1648084]
[1761565505358,0.14856145,1173.3,1169.3,0.52651885]
[1761565505657,0.14856145,1173.3,1169.4,0.52651885]
[1761565505856,0.14856145,1173.3,1168.8,0.62025004]
[1761565506054,0.14856145,1173.3,1166.4,2.1648084]
[1761565506055,0.14856145,1173.3,1168.9,0.52599398]
[1761565506254,0.14856145,1173.3,1169.0,0.52599398]
[1761565506456,0.14856145,1173.3,1169.1,0.52599398]
[1761565506657,0.14856145,1173.3,1169.2,0.52599398]
[1761565506857,0.14856145,1173.3,1168.2,0.86592337]
[1761565506858,0.14856145,1173.3,1168.6,0.62025004]
[1761565507059,0.14856145,1173.3,1168.7,0.52574692]
[1761565507258,0.14856145,1173.3,1168.8,0.52574692]
[1761565507462,0.14856145,1173.3,1168.9,0.52574692]
[1761565507661,0.14856145,1173.3,1169.0,0.52574692]
[1761565507964,0.14856145,1173.3,1169.1,0.52574692]
[1761565508163,0.14856145,1173.3,1169.2,0.52574692]
[1761565508359,0.14856145,1173.3,1169.3,0.52574692]
[1761565508664,0.14856145,1173.3,1168.8,0.62025004]
[1761565508862,0.14856145,1173.3,1168.9,0.52470728]
[1761565509061,0.14856145,1173.3,1169.0,0.52470728]
[1761565509265,0.14856145,1173.3,1169.1,0.52470728]
[1761565509463,0.14856145,1173.3,1169.2,0.52470728]
[1761565509662,0.14856145,1173.3,1168.8,0.62025004]
[1761565509863,0.14856145,1173.3,1168.9,0.52459766]
[1761565510064,0.14856145,1173.3,1169.0,0.52459766]
[1761565510367,0.14856145,1173.3,1169.1,0.52459766]
[1761565510568,0.14856145,1173.3,1168.5,0.62025004]
[1761565510865,0.14856145,1173.3,1168.6,0.52543436]
[1761565511064,0.14856145,1173.3,1168.7,0.52543436]
[1761565511267,0.14856145,1173.3,1168.8,0.52543436]
[1761565511467,0.14856145,1173.3,1168.9,0.52543436]
[1761565511867,0.14856145,1173.3,1169.0,0.52543436]
[1761565512064,0.14856145,1173.3,1169.1,0.52543436]
[1761565512268,0.14856145,1173.3,1169.2,0.52543436]
[1761565512466,0.14856145,1173.3,1169.3,0.52543436]
[1761565512670,0.14856145,1173.3,1169.4,0.52460627]
[1761565512869,0.14856145,1173.3,1168.6,0.62025004]
[1761565513163,0.14856145,1173.3,1168.7,0.52466261]
[1761565513367,0.14856145,1173.3,1168.8,0.52466261]
[1761565513567,0.14856145,1173.3,1168.9,0.52466261]
[1761565513767,0.14856145,1173.3,1169.0,0.52466261]
[1761565513967,0.14856145,1173.3,1169.1,0.52466261]
[1761565514268,0.14856145,1173.3,1169.2,0.52466261]
[1761565514468,0.14856145,1173.3,1169.3,0.52427673]
[1761565514672,0.14856145,1173.3,1168.6,0.62025004]
[1761565514869,0.14856145,1173.3,1168.7,2.5795314]
[1761565515073,0.14856145,1173.3,1168.8,0.52428136]
[1761565521675,2.1456881,1175.8,1169.2,0.62025004]
[1761565521875,0.14846511,1173.6,1169.3,0.52428136]
[1761565522075,0.14846511,1173.6,1169.4,0.52428136]
[1761565522375,0.14844485,1173.7,1169.5,0.52428136]
[1761565522674,2.1456881,1176.2,1169.6,0.52428136]
[1761565522972,0.14844675,1173.7,1169.7,0.52428136]
[1761565523175,0.14844675,1173.7,1169.8,0.52428136]
[1761565523374,4.2977337,1177.3,1169.9,0.52428136]
[1761565523580,0.14838535,1174.2,1170.0,0.52261672]
[1761565523772,0.14838535,1174.2,1170.1,0.52261672]
[1761565523975,2.1456881,1176.3,1170.2,0.52261672]
[1761565524278,2.1456881,1176.3,1169.7,0.62025004]
[1761565524279,0.14839801,1174.2,1169.7,0.62025004]
[1761565524474,2.1456881,1176.6,1169.8,0.52244101]
[1761565524673,0.14838725,1174.8,1169.9,0.52244101]
[1761565524877,0.14838725,1174.8,1170.0,0.52244101]
[1761565525075,6.4434218,1177.6,1170.1,0.52244101]
[1761565525273,0.1484037,1173.8,1169.3,0.62025004]
[1761565525479,0.1484037,1173.8,1169.4,0.62025004]
[1761565525678,2.1456881,1177.3,1169.5,0.52278144]
[1761565525879,0.14838598,1174.1,1169.6,0.52278144]
[1761565526078,2.1456881,1177.3,1169.7,0.52278144]
[1761565526375,0.14838282,1174.1,1169.8,0.52278144]
[1761565526578,0.14838282,1174.1,1169.9,0.52278144]
[1761565526777,2.1456881,1176.5,1170.0,0.52278144]
[1761565526972,2.1456881,1176.5,1169.6,0.62025004]
[1761565526973,0.14838851,1174.1,1170.1,0.52278144]
[1761565527174,0.14838851,1174.1,1170.2,0.52278144]
[1761565527379,2.1456881,1177.0,1169.6,0.62025004]
[1761565527579,0.14839231,1174.1,1169.7,0.52221393]
[1761565527879,2.1456881,1176.9,1169.8,0.52221393]
[1761565528175,0.14838915,1174.1,1169.9,0.52221393]
[1761565528479,2.1456881,1176.8,1170.0,0.52221393]
[1761565528675,0.14839231,1174.1,1169.4,0.62025004]
[1761565528875,0.14839231,1174.1,1168.7,1.435]
[1761565528876,0.14839231,1174.1,1169.5,0.52221222]
[1761565529075,2.1456881,1176.3,1169.6,0.52221222]
[1761565529279,0.14843155,1174.0,1169.7,0.52221222]
[1761565529476,0.14843155,1174.0,1169.8,0.52221222]
[1761565529675,2.1456881,1176.1,1169.4,0.62025004]
[1761565529876,6.8763739,1180.8,1169.5,1.14247197]
[1761565529877,0.14842839,1174.0,1169.5,1.14247197]
[1761565530080,0.14842839,1174.0,1169.6,0.52222193]
[1761565530276,2.1456881,1176.3,1169.7,1.14247197]
[1761565530476,0.14843788,1174.3,1169.8,0.52222193]
[1761565530675,2.1456881,1176.3,1169.9,0.52222193]
[1761565530979,2.1456881,1176.7,1170.0,0.52222193]
[1761565531179,0.1483999,1174.3,1170.1,0.52222193]
[1761565531480,2.1456881,1177.1,1169.4,0.62025004]
[1761565531676,0.14837776,1174.3,1169.5,1.14211218]
[1761565531876,2.1456881,1176.6,1169.7,0.62025004]
[1761565532075,2.1456881,1176.6,1169.8,0.52186214]
[1761565532281,0.14837649,1174.4,1169.9,0.52186214]
[1761565532479,0.14837649,1174.4,1169.7,0.62025004]
[1761565532480,2.1456881,1176.1,1170.0,0.52186214]
[1761565532679,2.1456881,1176.1,1170.1,0.52186214]
[1761565532876,0.14837649,1174.4,1170.2,0.52186214]
[1761565533080,3.0039634,1176.6,1169.5,0.60195022]
[1761565533380,0.14842459,1173.8,1169.6,0.52187986]
[1761565533578,2.1456881,1176.9,1169.0,0.60195022]
[1761565533777,2.1456881,1176.9,1169.1,0.52264527]
[1761565533976,0.14843978,1173.6,1169.2,0.52264527]
[1761565534176,2.1456881,1176.2,1169.3,0.52264527]
[1761565534475,2.1456881,1176.2,1168.9,0.60195022]
[1761565534476,0.148442,1173.7,1169.4,0.52264527]
[1761565534680,2.1456881,1175.9,1169.5,0.52264527]
[1761565534877,2.1456881,1175.9,1169.0,0.60195022]
[1761565535076,0.14845118,1173.7,1169.0,0.60195022]
[1761565535278,2.1456881,1176.0,1169.1,0.60195022]
[1761565535479,2.1456881,1176.0,1169.2,0.52288497]
[1761565535679,0.14847018,1173.7,1169.3,0.52288497]
[1761565535879,2.1456881,1176.2,1169.4,0.52288497]
[1761565536076,3.0039634,1176.9,1168.7,1.435]
[1761565536077,2.1456881,1175.5,1168.7,1.435]
[1761565536278,0.14848729,1173.2,1168.8,0.52361818]
[1761565536477,2.1456881,1175.5,1168.9,0.52361818]
[1761565536680,2.1456881,1175.5,1169.0,0.52361818]
[1761565536980,0.14852594,1173.2,1169.1,0.52361818]
[1761565537179,2.1456881,1174.8,1169.2,0.52361818]
[1761565537380,0.14847208,1173.9,1169.2,0.60195022]
[1761565537581,0.14847208,1173.9,1169.3,1.1255684]
[1761565537780,0.14847208,1173.9,1169.4,0.52361818]
[1761565538081,0.14847208,1173.9,1169.5,1.1255684]
[1761565538284,0.14847208,1173.9,1169.6,0.52361818]
[1761565538785,0.14847208,1173.9,1169.6,1.1255684]
[1761565538984,0.14847208,1173.9,1169.7,0.52361818]
[1761565539183,0.14847208,1173.9,1169.8,0.52361818]
[1761565539382,0.14847208,1173.9,1169.9,0.52361818]
[1761565539583,0.14847208,1173.9,1170.0,0.52361818]
[1761565539785,0.14847208,1173.9,1170.1,0.52361818]
[1761565539982,0.14847208,1173.9,1170.2,0.52361818]
[1761565540182,0.14847208,1173.9,1170.3,0.52361818]
[1761565540387,0.14847208,1173.9,1169.8,0.60195022]
[1761565540983,0.14847208,1173.9,1169.9,1.12641949]
[1761565541187,0.14847208,1173.9,1170.0,1.12641949]
[1761565541388,0.14847208,1173.9,1170.1,0.52446927]
[1761565541587,2.1456881,1176.2,1170.2,0.52446927]
[1761565541786,0.14842554,1174.3,1170.3,0.60195022]
[1761565541986,2.1456881,1175.7,1170.3,0.60195022]
[1761565542486,0.14840117,1174.3,1170.2,1.12641949]
[1761565542685,0.14840117,1174.3,1170.3,0.52446927]
[1761565542887,0.14840117,1174.3,1169.6,0.60195022]
[1761565543085,0.14840117,1174.3,1169.7,0.52653673]
[1761565543390,0.14840117,1174.3,1169.8,1.12848695]
[1761565543590,0.14840117,1174.3,1169.9,1.12848695]
[1761565543791,0.14840117,1174.3,1170.0,0.52653673]
[1761565543991,0.14840117,1174.3,1170.1,0.52653673]
[1761565544190,0.14840117,1174.3,1170.2,0.52653673]
[1761565544489,0.14840117,1174.3,1169.9,0.60195022]
[1761565544692,0.14840117,1174.3,1170.0,0.52810941]
[1761565544890,0.14840117,1174.3,1170.1,0.52810941]
[1761565545093,0.14840117,1174.3,1170.2,0.52810941]
[1761565545293,0.14840117,1174.3,1170.3,0.52810941]
[1761565545489,0.14840117,1174.3,1170.4,0.52810941]
[1761565545789,0.14840117,1174.3,1169.8,0.60195022]
[1761565545995,0.14840117,1174.3,1169.9,0.5287519]
[1761565546193,0.14840117,1174.3,1170.0,0.5287519]
[1761565546394,0.14840117,1174.3,1170.1,0.5287519]
[1761565546694,0.14840117,1174.3,1170.2,0.5287519]
[1761565546894,0.14840117,1174.3,1170.3,0.52976614]
[1761565547096,0.14840117,1174.3,1170.4,0.52948294]
[1761565547392,0.14840117,1174.3,1170.5,0.52948294]
[1761565547596,0.14840117,1174.3,1170.6,0.52948294]
[1761565547795,0.14840117,1174.3,1170.7,0.52948294]
[1761565547992,0.14840117,1174.3,1170.8,0.52948294]
[1761565548193,0.14840117,1174.3,1170.2,0.60195022]
[1761565548394,0.14840117,1174.3,1170.4,0.60195022]
[1761565548592,0.14840117,1174.3,1170.5,0.53108447]
[1761565548796,0.14840117,1174.3,1170.6,0.53108447]
[1761565548995,0.14840117,1174.3,1170.7,0.53108447]
[1761565549194,0.14840117,1174.3,1170.8,0.53108447]
[1761565549495,0.14840117,1174.3,1170.9,0.53108447]
[1761565549697,0.14840117,1174.3,1171.0,0.53108447]
[1761565549899,0.14840117,1174.3,1171.1,0.53108447]
[1761565550095,0.14840117,1174.3,1171.2,0.53108447]
[1761565550293,0.14840117,1174.3,1171.3,0.53108447]
[1761565550496,0.14840117,1174.3,1170.7,0.60195022]
[1761565550699,3.0039634,1175.8,1170.8,1.13425306]
[1761565550999,0.14838788,1174.5,1171.0,0.60195022]
[1761565551198,0.14838788,1174.5,1171.1,0.53230284]
[1761565551397,0.14838788,1174.5,1171.2,0.53230284]
[1761565551694,0.14838788,1174.5,1171.0,0.60195022]
[1761565551695,0.14838788,1174.5,1171.3,0.53230284]
[1761565551898,0.14838788,1174.5,1171.0,0.60195022]
[1761565552397,0.14838788,1174.5,1171.0,1.13450287]
[1761565552696,0.14838788,1174.5,1171.1,0.53255265]
[1761565552899,0.14838788,1174.5,1171.2,0.53255265]
[1761565553100,0.14838788,1174.5,1171.3,0.53255265]
[1761565553297,0.14838788,1174.5,1171.4,0.53255265]
[1761565553504,0.14838788,1174.5,1170.8,0.60195022]
[1761565553702,0.14838788,1174.5,1170.9,0.53286015]
[1761565553902,0.14838788,1174.5,1171.0,0.53286015]
[1761565554102,0.14838788,1174.5,1171.1,0.53286015]
[1761565554303,0.14838788,1174.5,1170.7,0.60195022]
[1761565554504,0.14838788,1174.5,1170.8,0.53325743]
[1761565554801,0.14838788,1174.5,1170.9,0.53325743]
[1761565555104,0.14838788,1174.5,1171.0,0.53325743]
[1761565555303,0.14838788,1174.5,1170.3,0.60195022]
[1761565555501,0.14838788,1174.5,1170.4,0.5334151]
[1761565555703,2.1456881,1174.2,1170.5,1.13536532]
[1761565556000,2.1456881,1174.2,1170.6,0.5334151]
[1761565556201,3.15235128,1174.5,1170.7,0.5334151]
[1761565556404,3.15235128,1174.5,1170.8,0.5334151]
[1761565556702,3.15235128,1174.5,1170.9,0.5334151]
[1761565557004,0.14838788,1174.5,1171.0,0.5334151]
[1761565557205,0.14838788,1174.5,1169.3,1.298885]
[1761565557206,0.14838788,1174.5,1170.5,0.60195022]
[1761565557402,2.1456881,1174.1,1170.6,0.53377928]
[1761565557601,2.1456881,1174.1,1170.7,0.53377928]
[1761565557806,0.14838788,1174.5,1170.8,0.53377928]
[1761565558001,0.14838788,1174.5,1170.9,0.53377928]
[1761565558206,0.14838788,1174.5,1170.1,0.60195022]
[1761565558406,0.14838788,1174.5,1170.2,0.53401268]
[1761565558604,0.14838788,1174.5,1170.3,0.53401268]
[1761565558802,0.14838788,1174.5,1170.4,0.53401268]
[1761565559008,0.14838788,1174.5,1170.5,0.53401268]
[1761565559303,0.14838788,1174.5,1169.6,0.86592337]
[1761565559304,0.14838788,1174.5,1170.6,0.53401268]
[1761565559508,0.14838788,1174.5,1170.7,0.53401268]
[1761565559708,0.14838788,1174.5,1170.8,0.53401268]
[1761565559909,0.14838788,1174.5,1170.9,0.53401268]
[1761565560106,0.14838788,1174.5,1170.1,0.60195022]
[1761565560306,0.14838788,1174.5,1170.2,1.13596753]
[1761565560509,0.14838788,1174.5,1170.3,1.13596753]
[1761565560709,0.14838788,1174.5,1170.4,0.53401731]
[1761565560909,0.14838788,1174.5,1170.5,0.53401731]
[1761565561105,0.14838788,1174.5,1170.6,0.53401731]
[1761565561311,0.14838788,1174.5,1170.7,0.53401731]
[1761565561607,0.14838788,1174.5,1170.8,0.53401731]
[1761565561809,0.14838788,1174.5,1170.3,0.60195022]
[1761565562106,2.1456881,1174.3,1170.4,0.53420101]
[1761565562312,2.1456881,1174.3,1169.8,0.60195022]
[1761565562610,2.29407598,1174.5,1169.9,0.53465939]
[1761565562809,2.29407598,1174.5,1170.0,0.53465939]
[1761565563012,2.29407598,1174.5,1170.1,0.53465939]
[1761565563213,2.29407598,1174.5,1170.2,0.53465939]
[1761565563412,2.29407598,1174.5,1170.3,0.53465939]
[1761565563610,2.1456881,1174.2,1170.4,0.53465939]
[1761565563809,2.1456881,1174.2,1169.9,0.60195022]
[1761565564007,2.1456881,1174.2,1170.0,0.5347359]
[1761565564212,2.1456881,1174.4,1170.1,0.5347359]
[1761565564408,2.1456881,1174.4,1170.2,0.5347359]
[1761565564613,2.1456881,1174.0,1170.3,0.5347359]
[1761565564808,2.1456881,1174.0,1170.4,0.5347359]
[1761565565014,2.1456881,1174.0,1170.5,0.5347359]
[1761565565312,2.1456881,1174.3,1170.6,0.53468839]
[1761565565511,2.1456881,1174.3,1170.0,0.60195022]
[1761565565715,0.14838788,1174.5,1170.1,0.53468839]
[1761565565916,0.14838788,1174.5,1170.2,0.53468839]
[1761565566215,0.14838788,1174.5,1170.3,0.53468839]
[1761565566416,0.14838788,1174.5,1170.4,0.53468839]
[1761565566616,0.14838788,1174.5,1170.5,0.53468839]
[1761565566816,0.14838788,1174.5,1170.6,0.53468839]
[1761565567012,0.14838788,1174.5,1169.9,0.60195022]
[1761565567217,0.14838788,1174.5,1170.0,0.53486027]
[1761565567418,0.14838788,1174.5,1170.1,0.53486027]
[1761565567613,0.14838788,1174.5,1170.2,0.53486027]
[1761565567917,0.14838788,1174.5,1170.3,1.68686027]
[1761565568117,0.14838788,1174.5,1170.3,1.152]
[1761565568317,2.1456881,1174.2,1170.3,1.152]
[1761565568519,2.1456881,1174.2,1170.4,0.53486019]
[1761565568818,0.14838788,1174.5,1170.5,0.53486019]
[1761565569012,0.14838788,1174.5,1170.6,0.53486019]
[1761565569315,2.1456881,1173.9,1170.3,1.152]
[1761565569714,2.1456881,1174.4,1170.3,1.152]
[1761565570715,0.14838788,1174.5,1170.3,1.152]
[1761565571221,2.29407598,1174.5,1170.3,1.152]
[1761565571821,2.1456881,1174.4,1170.3,1.152]
[1761565572820,2.1456881,1173.7,1170.3,1.152]
[1761565573321,2.1456881,1172.8,1170.3,1.152]
[1761565573817,4.2977337,1173.9,1170.3,1.152]
[1761565574518,2.1456881,1173.5,1170.3,1.152]
[1761565574916,2.1456881,1173.1,1170.3,1.152]
[1761565575321,2.1456881,1172.6,1170.3,1.152]
[1761565575826,2.1456881,1172.8,1170.3,1.152]
[1761565576425,2.1456881,1172.9,1170.3,1.152]
[1761565577025,2.1456881,1172.8,1170.3,1.152]
[1761565577523,2.1456881,1172.9,1170.3,1.152]
[1761565578129,2.1456881,1172.4,1170.3,1.152]
[1761565578527,3.0039634,1172.8,1170.3,1.152]
[1761565579028,4.2977337,1173.5,1170.3,1.152]
[1761565579629,2.1456881,1173.4,1170.3,1.152]
[1761565580128,2.1456881,1173.0,1170.3,1.152]
[1761565580529,2.1456881,1173.1,1170.3,1.152]
[1761565581126,2.1456881,1172.4,1170.3,1.152]
[1761565581329,3.0039634,1172.9,1170.3,1.152]
[1761565582230,2.1456881,1172.2,1170.3,1.152]
[1761565582733,5.1496515,1172.6,1170.3,1.152]
[1761565583233,2.1456881,1172.7,1170.3,1.152]
[1761565583828,2.1456881,1172.3,1170.3,1.152]
[1761565584334,2.1456881,1172.9,1170.3,1.152]
[1761565584832,2.1456881,1172.2,1170.3,1.152]
[1761565585333,5.1496515,1172.8,1170.3,1.152]
[1761565586028,2.1456881,1171.7,1170.3,1.152]
[1761565586433,11.1741076,1174.3,1170.3,1.152]
[1761565586434,2.1456881,1172.5,1170.3,1.152]
[1761565587027,2.1456881,1172.4,1170.3,1.152]
[1761565587532,2.1456881,1172.3,1170.3,1.152]
[1761565588531,2.1456881,1172.8,1170.3,1.152]
[1761565588931,2.1456881,1172.2,1170.3,1.152]
[1761565589529,2.1456881,1172.3,1170.3,1.152]
[1761565590127,2.1456881,1171.7,1170.3,1.152]
[1761565590527,2.1456881,1171.4,1170.3,1.152]
[1761565592129,2.1456881,1171.7,1170.3,1.152]
[1761565592631,2.1456881,1171.3,1170.3,1.152]
[1761565593735,2.1456881,1172.8,1170.3,1.152]
[1761565594235,2.1456881,1173.0,1170.3,1.152]
[1761565594833,2.1456881,1172.3,1170.3,1.152]
[1761565595233,2.1456881,1173.3,1170.3,1.152]
[1761565596231,2.1456881,1173.4,1170.3,1.152]
[1761565596836,2.1456881,1173.2,1170.3,1.152]
[1761565597338,2.1456881,1172.5,1170.3,1.152]
[1761565597838,2.1456881,1172.1,1170.3,1.152]
[1761565598337,2.1456881,1171.9,1170.3,1.152]
[1761565599034,2.1456881,1171.8,1170.3,1.152]
[1761565599339,2.1456881,1172.0,1170.3,1.152]
[1761565599740,2.1456881,1171.7,1170.3,1.152]
[1761565600337,2.1456881,1171.8,1170.3,1.152]
[1761565600837,2.1456881,1172.1,1170.3,1.152]
[1761565601941,2.1456881,1172.2,1170.3,1.152]
[1761565602442,2.1456881,1172.3,1170.3,1.152]
[1761565603445,2.1456881,1172.1,1170.3,1.152]
[1761565604041,2.1456881,1173.0,1170.3,1.152]
[1761565604343,2.1456881,1172.9,1170.3,1.152]
[1761565605041,2.1456881,1172.8,1170.3,1.152]
[1761565605544,2.1456881,1173.3,1170.3,1.152]
[1761565606040,2.1456881,1173.5,1170.3,1.152]
[1761565606643,2.1456881,1173.8,1170.3,1.152]
[1761565607241,2.1456881,1173.6,1170.3,1.152]
[1761565607740,2.1456881,1173.7,1170.3,1.152]
[1761565608342,2.1456881,1173.6,1170.3,1.152]
[1761565608845,2.1456881,1173.4,1170.3,1.152]
[1761565609342,2.1456881,1173.0,1170.3,1.152]
[1761565609546,5.1496515,1174.0,1170.3,1.152]
[1761565609747,2.1456881,1174.3,1170.3,1.152]
[1761565611348,2.29407598,1174.5,1170.3,1.152]
[1761565612846,2.1456881,1174.4,1170.3,1.152]
[1761565613248,2.1456881,1174.3,1170.3,1.152]